[Event "ONJK DE"]
[Site "Enschede, Netherlands"]
[Date "2022.08.13"]
[Round "13.2"]
[White "Klein Tuente, Sam"]
[Black "Terlouw, Wouter"]
[Result "0-1"]
[TimeControl "40min + 30sec/move"]
[WhiteElo "1383"]
[BlackElo "1720"]

1. Nf3 {[%clk 00:40:58]} {[%emt 00:00:01]} c5 {[%clk 00:40:56]} {[%emt
00:00:05]} 2. c3 {[%clk 00:41:11]} {[%emt 00:00:17]} Nf6 {[%clk 00:40:59]}
{[%emt 00:00:27]} 3. d4 {[%clk 00:41:24]} {[%emt 00:00:17]} e6 {[%clk
00:41:20]} {[%emt 00:00:09]} 4. g3 {[%clk 00:41:22]} {[%emt 00:00:33]} Nc6
{[%clk 00:41:26]} {[%emt 00:00:24]} 5. Bg2 {[%clk 00:41:14]} {[%emt 00:00:38]}
d5 {[%clk 00:41:33]} {[%emt 00:00:23]} 6. O-O {[%clk 00:40:00]} {[%emt
00:01:45]} Bd6 {[%clk 00:41:21]} {[%emt 00:00:40]} 7. Re1 {[%clk 00:39:11]}
{[%emt 00:01:20]} O-O {[%clk 00:41:07]} {[%emt 00:00:44]} 8. e3 {[%clk
00:37:36]} {[%emt 00:02:05]} e5 {[%clk 00:40:23]} {[%emt 00:01:14]} 9. dxe5
{[%clk 00:36:52]} {[%emt 00:01:14]} Nxe5 {[%clk 00:40:20]} {[%emt 00:00:33]} 10.
Nbd2 {[%clk 00:35:25]} {[%emt 00:01:58]} Bg4 {[%clk 00:38:06]} {[%emt
00:02:42]} 11. Qc2 {[%clk 00:31:47]} {[%emt 00:04:09]} Qd7 {[%clk 00:35:53]}
{[%emt 00:02:44]} 12. Nxe5 {[%clk 00:30:46]} {[%emt 00:01:30]} Bxe5 {[%clk
00:36:11]} {[%emt 00:00:12]} 13. e4 {[%clk 00:29:30]} {[%emt 00:01:46]} dxe4
{[%clk 00:34:38]} {[%emt 00:02:03]} 14. Nxe4 {[%clk 00:29:11]} {[%emt
00:00:49]} Bf5 {[%clk 00:34:21]} {[%emt 00:00:46]} 15. Be3 {[%clk 00:25:32]}
{[%emt 00:04:10]} b6 {[%clk 00:25:54]} {[%emt 00:08:57]} 16. Rad1 {[%clk
00:24:50]} {[%emt 00:01:12]} Qe6 {[%clk 00:25:32]} {[%emt 00:00:45]} 17. f4
{[%clk 00:23:40]} {[%emt 00:01:47]} Bc7 {[%clk 00:21:56]} {[%emt 00:04:05]} 18.
Nxf6+ {[%clk 00:22:53]} {[%emt 00:01:19]} Qxf6 {[%clk 00:22:15]} {[%emt
00:00:10]} 19. Qa4 {[%clk 00:22:19]} {[%emt 00:01:04]} Rad8 {[%clk 00:21:42]}
{[%emt 00:01:03]} 20. Qxa7 {[%clk 00:21:07]} {[%emt 00:01:43]} Bb8 {[%clk
00:21:37]} {[%emt 00:00:32]} 21. Qb7 {[%clk 00:20:28]} {[%emt 00:01:10]} h6
{[%clk 00:17:15]} {[%emt 00:04:52]} 22. Rd5 {[%clk 00:19:38]} {[%emt 00:01:21]}
Rxd5 {[%clk 00:15:56]} {[%emt 00:01:49]} 23. Qxd5 {[%clk 00:19:43]} {[%emt
00:00:24]} Be6 {[%clk 00:14:57]} {[%emt 00:01:29]} 24. Qc6 {[%clk 00:18:24]}
{[%emt 00:01:50]} Bxa2 {[%clk 00:14:52]} {[%emt 00:00:35]} 25. Qxf6 {[%clk
00:18:45]} {[%emt 00:00:09]} gxf6 {[%clk 00:15:16]} {[%emt 00:00:06]} 26. Ra1
{[%clk 00:17:49]} {[%emt 00:01:26]} Bc4 {[%clk 00:15:30]} {[%emt 00:00:15]} 27.
Bf1 {[%clk 00:16:07]} {[%emt 00:02:13]} Bd5 {[%clk 00:14:53]} {[%emt 00:01:01]}
28. Ra6 {[%emt 00:01:18]} Bc7 {[%clk 00:14:54]} {[%emt 00:00:23]} 29. Ra7
{[%clk 00:15:00]} {[%emt 00:01:00]} Bb8 {[%clk 00:15:13]} {[%emt 00:00:12]} 30.
Ra6 {[%clk 00:14:29]} {[%emt 00:01:01]} Bc7 {[%clk 00:15:36]} {[%emt 00:00:07]}
31. f5 {[%clk 00:13:40]} {[%emt 00:01:20]} Kg7 {[%clk 00:15:38]} {[%emt
00:00:28]} 32. c4 {[%clk 00:13:23]} {[%emt 00:00:47]} Be4 {[%clk 00:15:33]}
{[%emt 00:00:33]} 33. g4 {[%clk 00:12:10]} {[%emt 00:01:44]} Re8 {[%clk
00:14:55]} {[%emt 00:01:07]} 34. Bc1 {[%clk 00:11:08]} {[%emt 00:01:33]} Be5
{[%clk 00:14:02]} {[%emt 00:01:23]} 35. Be3 {[%clk 00:09:53]} {[%emt 00:01:45]}
Rb8 {[%clk 00:13:50]} {[%emt 00:00:40]} 36. Ra2 {[%clk 00:09:16]} {[%emt
00:01:07]} Bc6 {[%clk 00:13:11]} {[%emt 00:01:09]} 37. Bg2 {[%clk 00:09:10]}
{[%emt 00:00:38]} Bxg2 {[%clk 00:13:22]} {[%emt 00:00:19]} 38. Kxg2 {[%clk
00:09:39]} b5 {[%clk 00:13:36]} {[%emt 00:00:17]} 39. b3 {[%clk 00:09:28]}
{[%emt 00:00:41]} bxc4 {[%clk 00:13:27]} {[%emt 00:00:39]} 40. bxc4 {[%clk
00:09:47]} {[%emt 00:00:10]} Rb4 {[%clk 00:13:38]} {[%emt 00:00:18]} 41. Rc2
{[%clk 00:09:49]} {[%emt 00:00:29]} Bd6 {[%clk 00:13:51]} {[%emt 00:00:17]} 42.
h3 {[%clk 00:09:32]} {[%emt 00:00:47]} Rb3 {[%clk 00:13:36]} {[%emt 00:00:46]}
43. Kf3 {[%clk 00:09:24]} {[%emt 00:00:37]} Bf8 {[%clk 00:12:46]} {[%emt
00:01:19]} 44. Ke4 {[%clk 00:08:59]} {[%emt 00:00:56]} Ra3 {[%clk 00:12:47]}
{[%emt 00:00:29]} 45. Rg2 {[%clk 00:08:25]} {[%emt 00:01:04]} Rc3 {[%clk
00:12:58]} {[%emt 00:00:17]} 46. Rg1 {[%clk 00:07:07]} {[%emt 00:01:50]} Rxc4+
{[%clk 00:13:19]} {[%emt 00:00:09]} 47. Kd5 {[%clk 00:07:01]} {[%emt 00:00:36]}
Rc3 {[%clk 00:13:35]} {[%emt 00:00:14]} 48. Rg3 {[%clk 00:07:18]} {[%emt
00:00:13]} Rc2 {[%clk 00:13:42]} {[%emt 00:00:21]} 49. h4 {[%clk 00:06:55]}
{[%emt 00:00:55]} Be7 {[%clk 00:13:37]} {[%emt 00:00:35]} 50. g5 {[%clk
00:06:43]} {[%emt 00:00:42]} fxg5 {[%clk 00:13:44]} {[%emt 00:00:23]} 51. hxg5
{[%clk 00:07:03]} {[%emt 00:00:10]} hxg5 {[%clk 00:14:10]} {[%emt 00:00:04]} 52.
Bxg5 {[%clk 00:07:13]} {[%emt 00:00:19]} Bxg5 {[%clk 00:14:36]} {[%emt
00:00:05]} 53. Rxg5+ {[%clk 00:07:30]} {[%emt 00:00:13]} Kf6 {[%clk 00:14:57]}
{[%emt 00:00:08]} 54. Rg1 {[%clk 00:07:45]} {[%emt 00:00:15]} Kxf5 {[%clk
00:14:57]} {[%emt 00:00:31]} 55. Rf1 {[%clk 00:07:46]} {[%emt 00:00:28]} Kg6
{[%clk 00:13:54]} {[%emt 00:01:34]} 56. Rg1+ {[%clk 00:08:04]} {[%emt
00:00:12]} Kf6 {[%clk 00:13:52]} {[%emt 00:00:32]} 57. Rf1+ {[%clk 00:08:02]}
{[%emt 00:00:32]} Ke7 {[%clk 00:14:07]} {[%emt 00:00:14]} 58. Re1+ {[%clk
00:08:21]} {[%emt 00:00:11]} Kf8 {[%clk 00:14:22]} {[%emt 00:00:16]} 59. Rf1
{[%clk 00:08:34]} {[%emt 00:00:17]} c4 {[%clk 00:14:42]} {[%emt 00:00:09]} 60.
Kd4 {[%clk 00:08:52]} {[%emt 00:00:13]} Ke7 {[%clk 00:14:24]} {[%emt 00:00:48]}
61. Re1+ {[%clk 00:08:53]} {[%emt 00:00:29]} Kf8 {[%clk 00:13:24]} {[%emt
00:01:30]} 62. Rf1 {[%clk 00:09:14]} {[%emt 00:00:09]} Re2 {[%clk 00:13:38]}
{[%emt 00:00:16]} 63. Kxc4 {[%clk 00:09:28]} {[%emt 00:00:16]} Ke7 {[%clk
00:13:55]} {[%emt 00:00:13]} 64. Kd3 {[%clk 00:09:47]} {[%emt 00:00:11]} Re5
{[%clk 00:14:07]} {[%emt 00:00:17]} 65. Kd4 {[%clk 00:09:52]} {[%emt 00:00:26]}
Ke6 {[%clk 00:14:00]} {[%emt 00:00:37]} 66. Rh1 {[%clk 00:09:15]} {[%emt
00:01:06]} Rd5+ {[%clk 00:14:22]} {[%emt 00:00:09]} 67. Ke4 {[%clk 00:09:34]}
{[%emt 00:00:10]} f5+ {[%clk 00:14:46]} {[%emt 00:00:06]} 68. Kf4 {[%clk
00:09:37]} {[%emt 00:00:28]} Rd4+ {[%clk 00:15:11]} {[%emt 00:00:05]} 69. Ke3
{[%clk 00:09:53]} {[%emt 00:00:13]} Ke5 {[%clk 00:15:29]} {[%emt 00:00:13]} 70.
Rh5 {[%clk 00:10:07]} {[%emt 00:00:16]} Ra4 {[%clk 00:15:45]} {[%emt 00:00:13]}
71. Kf3 {[%clk 00:09:55]} {[%emt 00:00:42]} Ra3+ {[%clk 00:16:02]} {[%emt
00:00:14]} 72. Kg2 {[%clk 00:10:00]} {[%emt 00:00:25]} Ke4 {[%clk 00:16:09]}
{[%emt 00:00:22]} 73. Rh1 {[%clk 00:10:10]} {[%emt 00:00:20]} Ra2+ {[%clk
00:16:23]} {[%emt 00:00:17]} 74. Kg3 {[%clk 00:10:26]} {[%emt 00:00:14]} f4+
{[%clk 00:16:46]} {[%emt 00:00:07]} 75. Kg4 {[%clk 00:10:40]} {[%emt 00:00:15]}
Rg2 {[%clk 00:17:04]} {[%emt 00:00:12]} 76. Kh3 {[%clk 00:10:39]} {[%emt
00:00:32]} f3 {[%clk 00:17:18]} {[%emt 00:00:14]} 77. Ra1 {[%clk 00:10:39]}
{[%emt 00:00:32]} Rd2 {[%clk 00:17:10]} {[%emt 00:00:38]} 78. Kg3 {[%clk
00:10:05]} {[%emt 00:01:04]} f2 {[%clk 00:17:26]} {[%emt 00:00:14]} 79. Rf1
{[%clk 00:10:02]} {[%emt 00:00:33]} Ke3 {[%clk 00:17:43]} {[%emt 00:00:13]} 80.
Kh2 {[%clk 00:10:04]} {[%emt 00:00:27]} Kf3 {[%emt 00:04:22]} 81. Ra1 {[%clk
00:07:01]} Re2 {[%clk 00:17:24]} {[%emt 00:00:29]} 82. Ra3+ {[%clk 00:06:53]}
{[%emt 00:00:39]} Re3 {[%clk 00:17:46]} {[%emt 00:00:08]} 83. Ra1 {[%clk
00:06:59]} {[%emt 00:00:23]} Re1 {[%clk 00:18:09]} {[%emt 00:00:08]} 84. Ra3+
{[%clk 00:07:15]} {[%emt 00:00:15]} Ke2 {[%clk 00:18:33]} {[%emt 00:00:04]} 85.
Ra2+ {[%clk 00:07:25]} {[%emt 00:00:21]} Kf1 {[%clk 00:18:57]} {[%emt
00:00:05]} 86. Kg3 {[%clk 00:06:17]} {[%emt 00:01:38]} Re3+ {[%clk 00:19:12]}
{[%emt 00:00:16]} 87. Kh2 {[%clk 00:04:08]} {[%emt 00:02:39]} Rd3 {[%clk
00:18:16]} {[%emt 00:01:26]} 88. Rb2 {[%clk 00:03:06]} {[%emt 00:01:33]} Ke1
{[%clk 00:18:28]} {[%emt 00:00:17]} 89. Ra2 {[%clk 00:00:32]} {[%emt 00:03:04]}
f1=Q {[%clk 00:17:57]} {[%emt 00:01:01]} 90. Ra1+ {[%clk 00:00:51]} {[%emt
00:00:11]} Rd1 {[%clk 00:18:21]} {[%emt 00:00:06]} 91. Ra2 {[%clk 00:00:31]}
{[%emt 00:00:49]} Rd2+ {[%clk 00:18:42]} {[%emt 00:00:09]} 92. Rxd2 {[%clk
00:00:42]} Kxd2 {[%clk 00:19:11]} {[%emt 00:00:21]} 93. Kg3 {[%clk 00:01:03]}
{[%emt 00:00:09]} Ke3 {[%clk 00:19:32]} {[%emt 00:00:09]} 94. Kh2 {[%clk
00:01:30]} {[%emt 00:00:03]} Qf3 {[%clk 00:19:28]} {[%emt 00:00:34]} 95. Kg1
{[%clk 00:01:57]} {[%emt 00:00:03]} Qe2 {[%clk 00:19:43]} {[%emt 00:00:14]} 96.
Kh1 {[%clk 00:02:25]} {[%emt 00:00:03]} Kf3 {[%clk 00:20:01]} {[%emt 00:00:12]}
97. Kg1 {[%clk 00:02:53]} {[%emt 00:00:01]} Qg2# {[%clk 00:20:21]} {[%emt
00:00:10]} 0-1

[Event "ONJK DE"]
[Site "Enschede, Netherlands"]
[Date "2022.08.13"]
[Round "13.3"]
[White "Vogels, Mathijs"]
[Black "Frederiks, Jesse"]
[Result "1-0"]
[TimeControl "40min + 30sec/move"]
[WhiteElo "1283"]
[BlackElo "1302"]

1. e4 {[%clk 00:40:59]} e6 {[%clk 00:40:59]} {[%emt 00:00:02]} 2. d4 {[%clk
00:41:24]} {[%emt 00:00:05]} d5 {[%clk 00:41:26]} {[%emt 00:00:03]} 3. e5
{[%clk 00:41:50]} {[%emt 00:00:04]} c5 {[%clk 00:41:52]} {[%emt 00:00:03]} 4.
c3 {[%clk 00:42:15]} {[%emt 00:00:06]} Nc6 {[%clk 00:42:17]} {[%emt 00:00:05]}
5. Nf3 {[%clk 00:42:40]} {[%emt 00:00:05]} Qb6 {[%clk 00:42:40]} {[%emt
00:00:07]} 6. Be2 {[%clk 00:41:49]} {[%emt 00:01:20]} Nge7 {[%clk 00:42:33]}
{[%emt 00:00:37]} 7. Nbd2 {[%clk 00:40:18]} {[%emt 00:02:02]} Nf5 {[%clk
00:41:49]} {[%emt 00:01:13]} 8. Nb3 {[%clk 00:40:12]} {[%emt 00:00:37]} Bd7
{[%clk 00:40:54]} {[%emt 00:01:24]} 9. O-O {[%clk 00:38:01]} {[%emt 00:02:42]}
cxd4 {[%clk 00:39:59]} {[%emt 00:01:24]} 10. cxd4 {[%clk 00:38:20]} {[%emt
00:00:11]} Rc8 {[%clk 00:39:47]} {[%emt 00:00:41]} 11. Be3 {[%clk 00:38:10]}
{[%emt 00:00:42]} h6 {[%clk 00:37:44]} {[%emt 00:02:32]} 12. Rc1 {[%clk
00:38:07]} {[%emt 00:00:33]} Be7 {[%clk 00:36:23]} {[%emt 00:01:51]} 13. Ne1
{[%clk 00:36:12]} {[%emt 00:02:26]} O-O {[%clk 00:34:05]} {[%emt 00:02:47]} 14.
Nf3 {[%clk 00:36:07]} {[%emt 00:00:36]} Na5 {[%clk 00:32:32]} {[%emt 00:02:00]}
15. Nxa5 {[%clk 00:34:51]} {[%emt 00:01:50]} Qxa5 {[%clk 00:32:30]} {[%emt
00:00:31]} 16. Qb3 {[%clk 00:33:55]} {[%emt 00:01:26]} Bc6 {[%clk 00:29:30]}
{[%emt 00:03:29]} 17. Bd3 {[%clk 00:33:28]} {[%emt 00:00:57]} Nxe3 {[%clk
00:28:53]} {[%emt 00:01:07]} 18. fxe3 {[%clk 00:33:42]} {[%emt 00:00:15]} Bb4
{[%clk 00:26:52]} {[%emt 00:02:32]} 19. Rf2 {[%clk 00:32:30]} {[%emt 00:01:43]}
Ba4 {[%clk 00:26:42]} {[%emt 00:00:40]} 20. Bh7+ {[%clk 00:31:53]} {[%emt
00:01:07]} Kxh7 {[%clk 00:26:38]} {[%emt 00:00:33]} 21. Qd3+ {[%clk 00:32:15]}
{[%emt 00:00:09]} Kg8 {[%clk 00:26:48]} {[%emt 00:00:18]} 22. Rff1 {[%clk
00:32:18]} {[%emt 00:00:29]} Bb5 {[%clk 00:26:40]} {[%emt 00:00:37]} 23. Qd1
{[%clk 00:32:26]} {[%emt 00:00:23]} Rxc1 {[%clk 00:26:22]} {[%emt 00:00:48]} 24.
Qxc1 {[%clk 00:32:50]} {[%emt 00:00:06]} Bxf1 {[%clk 00:26:43]} {[%emt
00:00:09]} 25. Qxf1 {[%clk 00:33:14]} {[%emt 00:00:05]} Rc8 {[%clk 00:26:40]}
{[%emt 00:00:33]} 26. g4 {[%clk 00:33:04]} {[%emt 00:00:41]} Bd2 {[%clk
00:26:31]} {[%emt 00:00:39]} 27. Qf2 {[%clk 00:33:22]} {[%emt 00:00:12]} Rc1+
{[%clk 00:26:21]} {[%emt 00:00:40]} 28. Kg2 {[%clk 00:33:26]} {[%emt 00:00:26]}
Bb4 {[%clk 00:24:40]} {[%emt 00:02:11]} 29. g5 {[%clk 00:33:48]} {[%emt
00:00:08]} Qc7 {[%clk 00:22:07]} {[%emt 00:03:03]} 30. Kh3 {[%clk 00:33:21]}
{[%emt 00:00:57]} h5 {[%clk 00:20:01]} {[%emt 00:02:36]} 31. a3 {[%clk
00:32:19]} {[%emt 00:01:32]} Bf8 {[%clk 00:18:31]} {[%emt 00:02:00]} 32. g6
{[%clk 00:32:30]} {[%emt 00:00:20]} f6 {[%clk 00:12:05]} {[%emt 00:06:56]} 33.
Qh4 {[%clk 00:29:35]} {[%emt 00:03:25]} Bxa3 {[%clk 00:05:25]} {[%emt
00:07:10]} 34. Qxh5 {[%clk 00:29:32]} {[%emt 00:00:32]} Rf1 {[%clk 00:04:56]}
{[%emt 00:01:00]} 35. Qh7+ {[%clk 00:29:11]} {[%emt 00:00:50]} Kf8 {[%clk
00:05:11]} {[%emt 00:00:15]} 36. Qh8+ {[%clk 00:29:24]} {[%emt 00:00:18]} Ke7
{[%clk 00:05:11]} {[%emt 00:00:30]} 37. Qxg7+ {[%clk 00:29:17]} {[%emt
00:00:36]} Kd8 {[%clk 00:05:29]} {[%emt 00:00:13]} 38. Qxc7+ {[%clk 00:28:48]}
{[%emt 00:00:58]} Kxc7 {[%clk 00:05:48]} {[%emt 00:00:11]} 39. g7 {[%clk
00:29:11]} {[%emt 00:00:07]} Rxf3+ {[%clk 00:05:36]} {[%emt 00:00:43]} 40. Kg2
{[%clk 00:29:20]} {[%emt 00:00:20]} Rf5 {[%clk 00:05:40]} {[%emt 00:00:27]} 41.
h4 {[%clk 00:29:32]} {[%emt 00:00:18]} fxe5 {[%clk 00:05:23]} {[%emt 00:00:47]}
42. g8=Q {[%clk 00:29:33]} {[%emt 00:00:28]} Bd6 {[%clk 00:05:28]} {[%emt
00:00:25]} 43. Qxe6 {[%clk 00:29:29]} {[%emt 00:00:33]} Rf8 {[%clk 00:05:30]}
{[%emt 00:00:29]} 44. dxe5 {[%clk 00:28:57]} {[%emt 00:01:02]} Bc5 {[%clk
00:05:31]} {[%emt 00:00:29]} 45. Qxd5 {[%clk 00:29:11]} {[%emt 00:00:16]} Kb6
{[%clk 00:05:29]} {[%emt 00:00:33]} 46. h5 {[%clk 00:28:30]} {[%emt 00:01:11]}
Rh8 {[%clk 00:05:17]} {[%emt 00:00:41]} 47. Qf7 {[%clk 00:28:42]} {[%emt
00:00:17]} Rh6 {[%clk 00:05:28]} {[%emt 00:00:20]} 48. e6 {[%clk 00:28:53]}
{[%emt 00:00:20]} a6 {[%clk 00:05:12]} {[%emt 00:00:46]} 49. e7 {[%clk
00:29:08]} {[%emt 00:00:15]} Bxe7 {[%clk 00:05:38]} {[%emt 00:00:03]} 50. Qxe7
{[%clk 00:29:31]} {[%emt 00:00:07]} Rxh5 {[%clk 00:05:59]} {[%emt 00:00:10]} 51.
Qd8+ {[%clk 00:29:47]} {[%emt 00:00:13]} Ka7 {[%clk 00:06:11]} {[%emt
00:00:19]} 52. Qd4+ {[%clk 00:30:09]} {[%emt 00:00:08]} Ka8 {[%clk 00:06:27]}
{[%emt 00:00:14]} 53. e4 {[%clk 00:30:29]} {[%emt 00:00:10]} 1-0

[Event "ONJK DE"]
[Site "Enschede, Netherlands"]
[Date "2022.08.13"]
[Round "13.4"]
[White "Decraene, Lotus"]
[Black "Breider, Jayden"]
[Result "1/2-1/2"]
[TimeControl "40min + 30sec/move"]
[WhiteElo "1332"]
[BlackElo "1350"]

1. e4 {[%clk 00:40:30]} c5 {[%clk 00:40:30]} 2. Nf3 {[%clk 00:40:30]} d6 {[%clk
00:40:30]} 3. c3 {[%clk 00:40:30]} Nf6 {[%clk 00:41:18]} {[%emt 00:40:57]} 4.
Bd3 {[%clk 00:42:03]} e5 {[%clk 00:40:42]} {[%emt 00:01:17]} 5. Bc2 {[%clk
00:42:19]} {[%emt 00:00:14]} Bg4 {[%clk 00:40:39]} {[%emt 00:00:32]} 6. h3
{[%clk 00:42:12]} {[%emt 00:00:38]} Bh5 {[%clk 00:40:35]} {[%emt 00:00:35]} 7.
d3 {[%clk 00:42:32]} {[%emt 00:00:09]} Be7 {[%clk 00:40:43]} {[%emt 00:00:21]}
8. Be3 {[%clk 00:42:53]} {[%emt 00:00:09]} Qb6 {[%clk 00:38:37]} {[%emt
00:02:37]} 9. Bb3 {[%clk 00:38:43]} {[%emt 00:04:39]} Nc6 {[%clk 00:35:45]}
{[%emt 00:03:22]} 10. Nbd2 {[%clk 00:38:04]} {[%emt 00:01:09]} h6 {[%clk
00:34:33]} {[%emt 00:01:42]} 11. Qc2 {[%clk 00:35:36]} {[%emt 00:02:59]} a5
{[%clk 00:31:07]} {[%emt 00:03:56]} 12. O-O {[%clk 00:34:48]} {[%emt 00:01:17]}
O-O {[%clk 00:30:46]} {[%emt 00:00:51]} 13. Nh4 {[%clk 00:32:46]} {[%emt
00:02:31]} Rad8 {[%clk 00:26:37]} {[%emt 00:04:40]} 14. Nf5 {[%clk 00:29:33]}
{[%emt 00:03:43]} Bg6 {[%clk 00:25:14]} {[%emt 00:01:54]} 15. Nh4 {[%clk
00:29:27]} {[%emt 00:00:31]} Bh7 {[%clk 00:21:27]} {[%emt 00:04:22]} 16. Nhf3
{[%clk 00:27:05]} {[%emt 00:02:51]} Nh5 {[%clk 00:14:26]} {[%emt 00:07:31]} 17.
Qc1 {[%clk 00:26:29]} {[%emt 00:01:05]} Kh8 {[%clk 00:13:21]} {[%emt 00:03:31]}
18. Qd1 {[%clk 00:18:08]} {[%emt 00:08:45]} 1/2-1/2

[Event "ONJK DE"]
[Site "Enschede, Netherlands"]
[Date "2022.08.13"]
[Round "13.5"]
[White "Smeets, Bent"]
[Black "Rooijakkers, Liam"]
[Result "1/2-1/2"]
[TimeControl "40min + 30sec/move"]
[WhiteElo "909"]
[BlackElo "1266"]

1. d4 {[%clk 00:40:58]} {[%emt 00:00:01]} d6 {[%clk 00:40:58]} {[%emt
00:00:03]} 2. e4 {[%clk 00:41:16]} {[%emt 00:00:11]} Nf6 {[%clk 00:41:25]}
{[%emt 00:00:03]} 3. Nc3 {[%clk 00:41:34]} {[%emt 00:00:13]} Nbd7 {[%clk
00:41:50]} {[%emt 00:00:05]} 4. Nf3 {[%clk 00:41:42]} {[%emt 00:00:22]} e5
{[%clk 00:42:12]} {[%emt 00:00:07]} 5. dxe5 {[%clk 00:41:54]} {[%emt 00:00:18]}
dxe5 {[%clk 00:42:35]} {[%emt 00:00:07]} 6. Bc4 {[%clk 00:42:07]} {[%emt
00:00:17]} h6 {[%clk 00:42:51]} {[%emt 00:00:14]} 7. O-O {[%clk 00:42:24]}
{[%emt 00:00:14]} c6 {[%clk 00:43:14]} {[%emt 00:00:07]} 8. Be3 {[%clk
00:42:13]} {[%emt 00:00:41]} Qc7 {[%clk 00:43:34]} {[%emt 00:00:09]} 9. Qd3
{[%clk 00:41:43]} {[%emt 00:01:00]} a5 {[%clk 00:43:54]} {[%emt 00:00:11]} 10.
Rfe1 {[%clk 00:41:05]} {[%emt 00:01:08]} b5 {[%clk 00:43:53]} {[%emt 00:00:30]}
11. Bxb5 {[%clk 00:40:26]} {[%emt 00:01:09]} cxb5 {[%clk 00:44:09]} {[%emt
00:00:14]} 12. Nxb5 {[%clk 00:40:49]} {[%emt 00:00:07]} Qd8 {[%clk 00:44:03]}
{[%emt 00:00:37]} 13. a3 {[%clk 00:39:42]} {[%emt 00:01:37]} Ba6 {[%clk
00:43:29]} {[%emt 00:01:04]} 14. Nd6+ {[%clk 00:39:21]} {[%emt 00:00:50]} Bxd6
{[%clk 00:43:38]} {[%emt 00:00:21]} 15. Qxd6 {[%clk 00:39:40]} {[%emt
00:00:11]} Qb8 {[%clk 00:41:51]} {[%emt 00:02:17]} 16. Bc5 {[%clk 00:37:18]}
{[%emt 00:02:52]} Qxd6 {[%clk 00:42:03]} {[%emt 00:00:18]} 17. Bxd6 {[%clk
00:37:36]} {[%emt 00:00:13]} Rc8 {[%clk 00:41:04]} {[%emt 00:01:29]} 18. c3
{[%clk 00:37:23]} {[%emt 00:00:43]} Rc6 {[%clk 00:38:39]} {[%emt 00:02:53]} 19.
Bxe5 {[%clk 00:37:08]} {[%emt 00:00:46]} Nxe5 {[%clk 00:38:59]} {[%emt
00:00:10]} 20. Nxe5 {[%clk 00:37:30]} {[%emt 00:00:08]} Re6 {[%clk 00:39:14]}
{[%emt 00:00:15]} 21. f4 {[%clk 00:37:38]} {[%emt 00:00:23]} Bb7 {[%clk
00:39:15]} {[%emt 00:00:28]} 22. Nc4 {[%clk 00:37:20]} {[%emt 00:00:49]} a4
{[%clk 00:39:20]} {[%emt 00:00:24]} 23. e5 {[%clk 00:37:31]} {[%emt 00:00:20]}
Bd5 {[%clk 00:37:43]} {[%emt 00:02:05]} 24. Nd6+ {[%clk 00:37:23]} {[%emt
00:00:39]} Ke7 {[%clk 00:37:52]} {[%emt 00:00:16]} 25. Nf5+ {[%clk 00:37:34]}
{[%emt 00:00:25]} Kf8 {[%clk 00:38:04]} {[%emt 00:00:18]} 26. exf6 {[%clk
00:37:44]} {[%emt 00:00:19]} Rxf6 {[%clk 00:38:33]} {[%emt 00:00:02]} 27. Ne3
{[%clk 00:37:18]} {[%emt 00:00:56]} Be6 {[%clk 00:38:57]} {[%emt 00:00:06]} 28.
Rad1 {[%clk 00:37:04]} {[%emt 00:00:44]} g6 {[%clk 00:38:53]} {[%emt 00:00:34]}
29. Rd4 {[%clk 00:35:58]} {[%emt 00:01:35]} Bb3 {[%clk 00:39:08]} {[%emt
00:00:16]} 30. Nc4 {[%clk 00:35:42]} {[%emt 00:00:46]} Kg7 {[%clk 00:38:54]}
{[%emt 00:00:45]} 31. Nd2 {[%clk 00:35:10]} {[%emt 00:01:01]} Rb8 {[%clk
00:37:45]} {[%emt 00:01:38]} 32. Nxb3 {[%clk 00:34:59]} {[%emt 00:00:41]} Rxb3
{[%clk 00:38:05]} {[%emt 00:00:11]} 33. Rxa4 {[%clk 00:35:19]} {[%emt
00:00:10]} Rxb2 {[%clk 00:38:31]} {[%emt 00:00:03]} 34. Rc4 {[%clk 00:35:01]}
{[%emt 00:00:48]} Rd6 {[%clk 00:38:35]} {[%emt 00:00:26]} 35. Rd4 {[%clk
00:34:47]} {[%emt 00:00:45]} Rxd4 {[%clk 00:37:39]} {[%emt 00:01:26]} 36. cxd4
{[%clk 00:35:09]} {[%emt 00:00:08]} Rd2 {[%clk 00:38:07]} {[%emt 00:00:03]} 37.
Ra1 {[%clk 00:35:05]} {[%emt 00:00:33]} Rxd4 {[%clk 00:38:26]} {[%emt
00:00:11]} 38. g3 {[%clk 00:35:27]} {[%emt 00:00:07]} Ra4 {[%clk 00:38:45]}
{[%emt 00:00:11]} 39. Kf2 {[%clk 00:35:19]} {[%emt 00:00:39]} Kf6 {[%clk
00:39:10]} {[%emt 00:00:05]} 40. Kf3 {[%clk 00:35:40]} {[%emt 00:00:10]} g5
{[%clk 00:38:36]} {[%emt 00:01:03]} 41. fxg5+ {[%clk 00:35:47]} {[%emt
00:00:23]} Kxg5 {[%clk 00:38:41]} {[%emt 00:00:24]} 42. Ke3 {[%clk 00:35:30]}
{[%emt 00:00:47]} Kg4 {[%clk 00:38:58]} {[%emt 00:00:13]} 43. Kd3 {[%clk
00:35:44]} {[%emt 00:00:17]} Kh3 {[%clk 00:39:16]} {[%emt 00:00:11]} 44. Ra2
{[%clk 00:36:05]} {[%emt 00:00:10]} h5 {[%clk 00:38:23]} {[%emt 00:01:23]} 45.
Kc3 {[%clk 00:36:00]} {[%emt 00:00:35]} Ra8 {[%clk 00:37:41]} {[%emt 00:01:11]}
46. a4 {[%clk 00:35:58]} {[%emt 00:00:33]} f5 {[%clk 00:36:30]} {[%emt
00:01:41]} 47. Rf2 {[%emt 00:03:12]} h4 48. Re2 {[%clk 00:32:45]} {[%emt
00:00:01]} 1/2-1/2